bitfinex/quotes_BTCUSD_20250208
["timestamp","ask_amount","ask_price","bid_price","bid_amount"]
[1738981045969,0.28431072,96583.0,96582.0,0.1996702]
[1738981047171,0.14453472,96583.0,96582.0,0.1996702]
[1738981047992,0.14453472,96583.0,96582.0,0.1736702]
[1738981048197,0.14453472,96583.0,96582.0,0.1826702]
[1738981048407,0.14453472,96583.0,96582.0,0.1896702]
[1738981048810,0.14453472,96583.0,96582.0,0.3204472]
[1738981048930,0.14453472,96583.0,96582.0,0.1866702]
[1738981049151,0.14453472,96583.0,96582.0,0.1956702]
[1738981049333,0.14453472,96583.0,96582.0,0.3354472]
[1738981049541,0.12826973,96583.0,96582.0,0.35065335]
[1738981049756,0.12826973,96583.0,96582.0,0.37365335]
[1738981050199,0.00026973,96583.0,96582.0,0.37365335]
[1738981051648,0.00026973,96583.0,96582.0,0.40590514]
[1738981051884,0.00026973,96583.0,96582.0,0.43022996]
[1738981052483,0.00026973,96583.0,96582.0,0.44081569]
[1738981053865,0.00026973,96583.0,96582.0,0.59081569]
[1738981054612,0.00026973,96583.0,96582.0,0.84571569]
[1738981054816,0.00026973,96583.0,96582.0,0.83671569]
[1738981055197,0.00026973,96583.0,96582.0,0.83271569]
[1738981055605,0.00026973,96583.0,96582.0,0.83871569]
[1738981057654,0.0001068,96586.0,96585.0,0.289773]
[1738981057854,0.0001068,96586.0,96585.0,0.77359499]
[1738981058058,0.0001068,96586.0,96585.0,0.78359499]
[1738981059405,0.0001068,96586.0,96585.0,0.79359499]
[1738981059621,0.0001068,96586.0,96585.0,0.85112596]
[1738981060202,0.0001068,96586.0,96585.0,0.84112596]
[1738981065083,0.0001068,96586.0,96585.0,0.83112596]
[1738981066051,0.0001068,96586.0,96585.0,0.80680114]
[1738981072463,0.0001068,96586.0,96585.0,0.81680114]
[1738981075299,0.0001068,96586.0,96585.0,0.80159499]
[1738981079161,0.0001068,96586.0,96585.0,0.79159499]
[1738981079358,0.0001068,96586.0,96585.0,0.80159499]
[1738981088726,0.0001068,96586.0,96585.0,0.76859499]
[1738981088928,0.0761068,96586.0,96585.0,0.36369499]
[1738981089302,0.0761068,96586.0,96585.0,0.38669499]
[1738981089502,0.0761068,96586.0,96585.0,0.36369499]
[1738981090569,0.0761068,96586.0,96585.0,0.38669499]
[1738981091724,0.1212068,96586.0,96585.0,0.22392199]
[1738981092095,0.13765712,96586.0,96585.0,0.22392199]
[1738981092302,0.13765712,96586.0,96585.0,0.1916702]
[1738981092507,0.1212068,96586.0,96585.0,0.1916702]
[1738981092713,0.13765573,96586.0,96585.0,0.1826702]
[1738981092915,0.13765573,96586.0,96585.0,0.1916702]
[1738981093546,0.13765573,96586.0,96585.0,0.1826702]
[1738981093754,0.13765573,96586.0,96585.0,0.1916702]
[1738981093965,0.13765573,96586.0,96585.0,0.1826702]
[1738981094439,0.13765573,96586.0,96585.0,0.1906702]
[1738981096452,0.13765573,96586.0,96585.0,0.3304432]
[1738981096863,0.13765573,96586.0,96585.0,0.1906702]
[1738981101742,0.13765573,96586.0,96585.0,0.3304432]
[1738981102551,0.1212068,96586.0,96585.0,0.3304432]
[1738981102800,0.13795659,96586.0,96585.0,0.3304432]
[1738981103839,0.1212068,96586.0,96585.0,0.3304432]
[1738981103982,0.13795659,96586.0,96585.0,0.3304432]
[1738981105742,0.09285659,96586.0,96585.0,0.3304432]
[1738981106084,0.0761068,96586.0,96585.0,0.3304432]
[1738981107560,0.0761068,96586.0,96585.0,0.1906702]
[1738981107722,0.1219068,96586.0,96585.0,0.1906702]
[1738981107923,0.13865675,96586.0,96585.0,0.1906702]
[1738981108147,0.65633675,96586.0,96585.0,0.1906702]
[1738981114852,0.61053675,96586.0,96585.0,0.1906702]
[1738981116926,0.61053675,96586.0,96585.0,0.2058917]
[1738981120027,0.61053675,96586.0,96585.0,0.37794556]
[1738981122678,0.61053675,96586.0,96585.0,0.23817256]
[1738981123132,0.61053675,96586.0,96585.0,0.37794556]
[1738981123635,0.61053675,96586.0,96585.0,0.23817256]
[1738981124033,0.75030775,96586.0,96585.0,0.23817256]
[1738981124189,0.75030775,96586.0,96585.0,0.2058917]
[1738981124394,0.79610775,96586.0,96585.0,0.2058917]
[1738981125571,0.79610775,96586.0,96585.0,0.13472515]
[1738981125768,0.79610775,96586.0,96585.0,0.0322215]
[1738981127761,0.79610775,96586.0,96585.0,0.0242215]
[1738981128118,0.79610775,96586.0,96585.0,0.0222215]
[1738981128347,0.79610775,96586.0,96585.0,0.0152215]
[1738981128548,0.79610775,96586.0,96585.0,0.0242215]
[1738981128749,0.79610775,96586.0,96585.0,0.0312215]
[1738981128963,0.79610775,96586.0,96585.0,0.0222215]
[1738981129160,0.65633675,96586.0,96585.0,0.10950365]
[1738981129587,0.79610775,96586.0,96585.0,0.11850365]
[1738981129820,0.65633675,96586.0,96585.0,0.11850365]
[1738981130013,0.65633675,96586.0,96585.0,0.10250365]
[1738981130215,0.65633675,96586.0,96585.0,0.10950365]
[1738981130356,0.79610775,96586.0,96585.0,0.11350365]
[1738981130777,0.65633675,96586.0,96585.0,0.11350365]
[1738981131417,0.65633675,96586.0,96585.0,0.12872809]
[1738981132243,0.79610775,96586.0,96585.0,0.12872809]
[1738981133540,0.65633675,96586.0,96585.0,0.12872809]
[1738981134188,0.61053675,96586.0,96585.0,0.26850109]
[1738981134431,0.53453675,96586.0,96585.0,0.33966764]
[1738981135357,0.53453675,96586.0,96585.0,0.19989464]
[1738981135581,0.53453675,96586.0,96585.0,0.33966764]
[1738981136133,0.53453675,96586.0,96585.0,0.36402477]
[1738981139234,0.53453675,96586.0,96585.0,0.39632333]
[1738981141742,0.53453675,96586.0,96585.0,0.41932333]
[1738981141943,0.53453675,96586.0,96585.0,0.56932333]
[1738981142125,0.53453675,96586.0,96585.0,0.59368295]
[1738981142775,0.53453675,96586.0,96585.0,0.58668295]
[1738981142952,0.53453675,96586.0,96585.0,0.84665069]
[1738981143160,0.53453675,96586.0,96585.0,0.82222333]
[1738981143359,0.53453675,96586.0,96585.0,0.82922333]
[1738981154858,0.53453675,96586.0,96585.0,0.83922333]
[1738981155884,0.53453675,96586.0,96585.0,0.83022333]
[1738981156085,0.53453675,96586.0,96585.0,0.83922333]
[1738981156455,0.53453675,96586.0,96585.0,0.92112333]
[1738981156680,0.53453675,96586.0,96585.0,0.91412333]
[1738981157196,0.53453675,96586.0,96585.0,0.92112333]
[1738981157422,0.53453675,96586.0,96585.0,0.91212333]
[1738981157698,0.50256218,96586.0,96585.0,0.93012333]
[1738981158644,0.50266898,96586.0,96585.0,0.93012333]
[1738981159515,0.50266898,96586.0,96585.0,0.9057662]
[1738981160119,0.41984098,96586.0,96585.0,0.9057662]
[1738981160340,0.35771998,96586.0,96585.0,0.9639662]
[1738981160541,0.33701298,96586.0,96585.0,0.9639662]
[1738981160951,0.33701298,96586.0,96585.0,0.9549662]
[1738981161157,0.29559898,96586.0,96585.0,0.9639662]
[1738981161394,0.25418498,96586.0,96585.0,0.9479662]
[1738981161544,0.23347798,96586.0,96585.0,0.9479662]
[1738981161754,0.1981549,96586.0,96585.0,0.9479662]
[1738981162149,0.1981549,96586.0,96585.0,0.9569662]
[1738981162769,0.15144292,96586.0,96585.0,0.9569662]
[1738981163095,0.08932192,96586.0,96585.0,0.9479662]
[1738981163250,0.08932192,96586.0,96585.0,0.9569662]
[1738981163875,0.06861492,96586.0,96585.0,0.9569662]
[1738981167172,0.02720092,96586.0,96585.0,0.9479662]
[1738981167375,0.00649392,96586.0,96585.0,0.9389662]
[1738981167582,9.2e-07,96586.0,96585.0,0.9479662]
[1738981167742,9.2e-07,96586.0,96585.0,0.9389662]
[1738981167940,9.2e-07,96586.0,96585.0,0.9569662]
[1738981168423,9.2e-07,96586.0,96585.0,0.9479662]
[1738981169403,9.2e-07,96586.0,96585.0,0.9389662]
[1738981169732,9.2e-07,96586.0,96585.0,0.9569662]
[1738981170333,9.2e-07,96586.0,96585.0,0.9479662]
[1738981170556,9.2e-07,96586.0,96585.0,0.9659662]
[1738981171087,9.2e-07,96586.0,96585.0,0.93919048]
[1738981171306,9.2e-07,96586.0,96585.0,0.94819048]
[1738981171511,9.2e-07,96586.0,96585.0,0.95719048]
[1738981173959,9.2e-07,96586.0,96585.0,0.94819048]
[1738981174534,9.2e-07,96586.0,96585.0,0.95719048]
[1738981175456,9.2e-07,96586.0,96585.0,0.81709048]
[1738981175630,9.2e-07,96586.0,96585.0,0.80709048]
[1738981175864,9.2e-07,96586.0,96585.0,0.63409048]
[1738981176264,9.2e-07,96586.0,96585.0,0.80709048]
[1738981176443,9.2e-07,96586.0,96585.0,0.78909048]
[1738981176645,9.2e-07,96586.0,96585.0,0.79809048]
[1738981176875,9.2e-07,96586.0,96585.0,0.80709048]
[1738981177072,9.2e-07,96586.0,96585.0,0.79809048]
[1738981177249,9.2e-07,96586.0,96585.0,0.78909048]
[1738981177457,9.2e-07,96586.0,96585.0,0.80709048]
[1738981177713,9.2e-07,96586.0,96585.0,0.79809048]
[1738981178053,9.2e-07,96586.0,96585.0,0.78909048]
[1738981178260,9.2e-07,96586.0,96585.0,0.79809048]
[1738981179106,9.2e-07,96586.0,96585.0,0.80709048]
[1738981182240,9.2e-07,96586.0,96585.0,0.79186604]
[1738981182649,9.2e-07,96586.0,96585.0,0.78286604]
[1738981182850,9.2e-07,96586.0,96585.0,0.79186604]
[1738981183292,9.2e-07,96586.0,96585.0,0.78286604]
[1738981183492,9.2e-07,96586.0,96585.0,0.79186604]
[1738981183853,9.2e-07,96586.0,96585.0,0.78286604]
[1738981184570,9.2e-07,96586.0,96585.0,0.80698549]
[1738981185773,9.2e-07,96586.0,96585.0,0.79186604]
[1738981193250,9.2e-07,96586.0,96585.0,0.53696604]
[1738981193463,0.08200092,96586.0,96585.0,0.53696604]
[1738981204669,0.08200092,96586.0,96585.0,0.52796604]
[1738981204877,0.08200092,96586.0,96585.0,0.51896604]
[1738981205072,0.08200092,96586.0,96585.0,0.52796604]
[1738981205314,0.08200092,96586.0,96585.0,0.53696604]
[1738981208874,9.2e-07,96586.0,96585.0,0.53696604]
[1738981210325,9.2e-07,96586.0,96585.0,0.60781348]
[1738981210524,9.2e-07,96586.0,96585.0,0.86271348]
[1738981211426,9.2e-07,96586.0,96585.0,0.84471348]
[1738981211742,9.2e-07,96586.0,96585.0,0.80801348]
[1738981211950,9.2e-07,96586.0,96585.0,0.81701348]
[1738981212099,0.0002245,96591.0,96590.0,0.01]
[1738981212444,0.0002245,96591.0,96590.0,0.45756821]
[1738981213200,0.0002245,96591.0,96590.0,0.46656821]
[1738981213793,0.0002245,96591.0,96590.0,0.48171565]
[1738981214480,0.0002245,96591.0,96590.0,0.49071565]
[1738981215119,0.0002245,96591.0,96590.0,0.8077822]
[1738981215328,0.0002245,96591.0,96590.0,0.8167822]
[1738981215846,0.0002245,96591.0,96590.0,0.8077822]
[1738981216125,0.0002245,96591.0,96590.0,0.8167822]
[1738981217187,0.0002245,96591.0,96590.0,0.82723155]
[1738981218643,0.0002245,96591.0,96590.0,0.81723155]
[1738981218846,0.0002245,96591.0,96590.0,0.82723155]
[1738981223457,0.0002245,96591.0,96590.0,0.87543155]
[1738981225851,0.0002245,96591.0,96590.0,0.86643155]
[1738981226030,0.0002245,96591.0,96590.0,0.85743155]
[1738981226225,0.0002245,96591.0,96590.0,0.86643155]
[1738981227243,0.00022428,96611.0,96591.0,0.183]
[1738981227397,0.00026972,96611.0,96610.0,0.26524065]
[1738981227620,0.00026972,96611.0,96610.0,0.44753921]
[1738981228505,0.00026972,96611.0,96610.0,0.46268665]
[1738981229233,0.00026972,96611.0,96610.0,0.48068665]
[1738981229414,0.00026972,96611.0,96610.0,0.47168665]
[1738981229641,0.00026972,96611.0,96610.0,0.48068665]
[1738981230850,0.00026972,96611.0,96610.0,0.46268665]
[1738981231057,0.00026972,96611.0,96610.0,0.47675659]
[1738981231473,0.00026972,96611.0,96610.0,0.48575659]
[1738981231673,0.00026972,96611.0,96610.0,0.49475659]
[1738981231900,0.00026972,96611.0,96610.0,0.8221203]
[1738981232474,0.00026972,96611.0,96610.0,0.8311203]
[1738981232650,0.00026972,96611.0,96610.0,0.8221203]
[1738981233102,0.00026972,96611.0,96610.0,0.8311203]
[1738981233876,0.00026972,96611.0,96610.0,0.8131203]
[1738981234307,0.00026972,96611.0,96610.0,0.8221203]
[1738981235488,0.00026972,96611.0,96610.0,0.83723363]
[1738981237914,0.00026972,96611.0,96610.0,0.8221203]
[1738981239066,0.00026972,96611.0,96610.0,0.8131203]
[1738981239424,0.00026972,96611.0,96610.0,0.8221203]
[1738981240022,0.00026972,96611.0,96610.0,0.8231203]
[1738981240231,0.0809,96626.0,96622.0,0.186292]
[1738981240429,0.08094543,96626.0,96625.0,0.27550365]
[1738981240631,0.08094543,96626.0,96625.0,0.44751721]
[1738981242135,0.08094543,96626.0,96625.0,0.48063267]
[1738981242939,0.08094543,96626.0,96625.0,0.46551721]
[1738981243541,0.08094543,96626.0,96625.0,0.4756594]
[1738981244936,0.08094543,96626.0,96625.0,0.54682595]
[1738981246533,4.543e-05,96626.0,96625.0,0.54682595]
[1738981247200,5.6e-07,96642.0,96641.0,0.289692]
[1738981247402,0.000114,96662.0,96661.0,0.289663]
[1738981247602,0.000114,96662.0,96661.0,0.32196156]
[1738981247812,0.00015944,96662.0,96661.0,0.34496156]
[1738981248017,0.00015944,96662.0,96661.0,0.36577765]
[1738981248599,0.00015944,96662.0,96661.0,0.37377765]
[1738981249214,0.00015944,96662.0,96661.0,0.38277765]
[1738981249516,0.00015944,96662.0,96661.0,0.39332704]
[1738981250078,0.00015944,96662.0,96661.0,0.49583069]
[1738981250716,0.00015944,96662.0,96661.0,0.75973069]
[1738981251630,0.00015944,96662.0,96661.0,0.75073069]
[1738981251972,0.00015944,96662.0,96661.0,0.74273069]
[1738981252340,0.00015944,96662.0,96661.0,0.75173069]
[1738981252532,0.00026614,96662.0,96661.0,0.74273069]
[1738981253434,0.00026614,96662.0,96661.0,0.75173069]
[1738981254001,0.00026614,96662.0,96661.0,0.74273069]
[1738981254217,0.00026614,96662.0,96661.0,0.75173069]
[1738981255010,0.00026614,96662.0,96661.0,0.76677037]
[1738981256616,0.00026614,96662.0,96661.0,0.83793692]
[1738981259462,0.00026614,96662.0,96661.0,0.80563836]
[1738981259917,0.00026614,96662.0,96661.0,0.78482227]
[1738981260713,0.00026614,96662.0,96661.0,0.8056546]
[1738981262521,0.00026614,96662.0,96661.0,0.78482227]
[1738981262875,0.00026614,96662.0,96661.0,0.51488259]
[1738981264657,0.00026614,96662.0,96661.0,0.54694842]
[1738981265732,0.00026614,96662.0,96661.0,0.56197325]
[1738981270012,0.00026614,96662.0,96661.0,0.52990742]
[1738981271538,0.00026614,96662.0,96661.0,0.5620081]
[1738981271958,0.07976614,96662.0,96661.0,0.5390081]
[1738981272185,0.12696614,96662.0,96661.0,0.50690742]
[1738981273407,0.12696614,96662.0,96661.0,0.49188259]
[1738981275571,0.12696614,96662.0,96661.0,0.52403137]
[1738981278586,0.12696614,96662.0,96661.0,0.54703137]
[1738981278864,0.07976614,96662.0,96661.0,0.54703137]
[1738981286967,0.07976614,96662.0,96661.0,0.52403137]
[1738981287748,0.12576614,96662.0,96661.0,0.36348198]
[1738981287901,0.12576614,96662.0,96661.0,0.22381898]
[1738981288126,0.12576614,96662.0,96661.0,0.1916702]
[1738981288308,0.14011018,96662.0,96661.0,0.1916702]
[1738981288508,0.14011018,96662.0,96661.0,0.1826702]
[1738981288705,0.14011018,96662.0,96661.0,0.1736702]
[1738981289168,0.14011018,96662.0,96661.0,0.1826702]
[1738981289647,0.14011018,96662.0,96661.0,0.1736702]
[1738981290013,0.14011018,96662.0,96661.0,0.1826702]
[1738981290417,0.14011018,96662.0,96661.0,0.1736702]
[1738981290672,0.12576614,96662.0,96661.0,0.1826702]
[1738981291076,0.14010418,96662.0,96661.0,0.1916702]
[1738981291511,0.12576614,96662.0,96661.0,0.1916702]
[1738981291688,0.07976614,96662.0,96661.0,0.22392888]
[1738981294268,0.07976614,96662.0,96661.0,0.36359188]
[1738981298501,0.07976614,96662.0,96661.0,0.3313332]
[1738981304188,0.00026614,96662.0,96661.0,0.53659361]
[1738981305320,0.00026614,96662.0,96661.0,0.85242073]
[1738981305522,0.00026614,96662.0,96661.0,0.93112073]
[1738981305845,0.00026614,96662.0,96661.0,0.94012073]
[1738981306261,0.00026614,96662.0,96661.0,0.94912073]
[1738981306674,0.00026614,96662.0,96661.0,0.94012073]
[1738981307105,0.00026614,96662.0,96661.0,0.94912073]
[1738981307505,0.00026614,96662.0,96661.0,0.94012073]
[1738981307907,0.00026614,96662.0,96661.0,0.94912073]
[1738981313590,0.00026614,96662.0,96661.0,0.87042073]
[1738981313792,0.00026614,96662.0,96661.0,0.85242073]
[1738981314203,0.00026614,96662.0,96661.0,0.86142073]
[1738981314966,0.00026614,96662.0,96661.0,0.78952073]
[1738981315711,0.00026614,96662.0,96661.0,0.81252073]
[1738981315917,0.00026614,96662.0,96661.0,0.76849361]
[1738981316125,0.00026614,96662.0,96661.0,0.51359361]
[1738981316327,0.00026614,96662.0,96661.0,0.36359361]
[1738981316536,0.07896614,96662.0,96661.0,0.36359361]
[1738981317165,0.07896614,96662.0,96661.0,0.35459361]
[1738981317363,0.07896614,96662.0,96661.0,0.3133332]
[1738981317563,0.07896614,96662.0,96661.0,0.3223332]
[1738981317790,0.07896614,96662.0,96661.0,0.3313332]
[1738981319579,0.07896614,96662.0,96661.0,0.3223332]
[1738981320032,0.07896614,96662.0,96661.0,0.3313332]
[1738981320238,0.07896614,96662.0,96661.0,0.3223332]
[1738981320735,0.07896614,96662.0,96661.0,0.3313332]
[1738981321286,0.00026614,96662.0,96661.0,0.38654578]
[1738981324621,0.00026614,96662.0,96661.0,0.53654578]
[1738981328083,0.00026614,96662.0,96661.0,0.79144578]
[1738981330249,0.00026614,96662.0,96661.0,0.86744578]
[1738981330848,0.0486,96700.0,96670.0,0.01]
[1738981331049,0.00056117,96683.0,96682.0,0.39213665]
[1738981331301,0.00056117,96683.0,96682.0,0.44734923]
[1738981332917,0.00056117,96683.0,96682.0,0.45634923]
[1738981333323,0.00056117,96683.0,96682.0,0.44734923]
[1738981333748,0.00056117,96683.0,96682.0,0.46534923]
[1738981333950,0.00056117,96683.0,96682.0,0.47581403]
[1738981335717,0.00056117,96683.0,96682.0,0.45781403]
[1738981335966,0.00056117,96683.0,96682.0,0.47581403]
[1738981336322,0.07786117,96683.0,96682.0,0.47581403]
[1738981336543,0.07786117,96683.0,96682.0,0.46681403]
[1738981336740,0.07786117,96683.0,96682.0,0.47581403]
[1738981336926,0.07786117,96683.0,96682.0,0.53651578]
[1738981337344,0.07786117,96683.0,96682.0,0.51851578]
[1738981337571,0.07786117,96683.0,96682.0,0.53651578]
[1738981349027,0.07786117,96683.0,96682.0,0.46534923]
[1738981349028,0.00056117,96683.0,96682.0,0.46534923]
[1738981349430,0.00056117,96683.0,96682.0,0.53651578]
[1738981353857,0.12396117,96683.0,96682.0,0.51351578]
[1738981354267,0.12396117,96683.0,96682.0,0.53651578]
[1738981355054,0.07636117,96683.0,96682.0,0.53651578]
[1738981355233,0.00056117,96683.0,96682.0,0.53651578]
[1738981360663,0.00056117,96683.0,96682.0,0.46534923]
[1738981366728,0.00056117,96683.0,96682.0,0.53651578]
[1738981369127,0.12856117,96683.0,96682.0,0.36351578]
[1738981369927,0.12856117,96683.0,96682.0,0.37751578]
[1738981370370,0.12856117,96683.0,96682.0,0.38651578]
[1738981370627,0.12856117,96683.0,96682.0,0.37751578]
[1738981371008,0.12856117,96683.0,96682.0,0.38651578]
[1738981372637,0.12856117,96683.0,96682.0,0.29234923]
[1738981384658,0.64572117,96683.0,96682.0,0.29234923]
[1738981384868,0.64572117,96683.0,96682.0,0.12050365]
[1738981385026,0.6603995,96683.0,96682.0,0.12050365]
[1738981385448,0.6603995,96683.0,96682.0,0.26013665]
[1738981385701,0.6603995,96683.0,96682.0,0.25113665]
[1738981386122,0.6603995,96683.0,96682.0,0.26013665]
[1738981386585,0.6603995,96683.0,96682.0,0.25113665]
[1738981386989,0.6603995,96683.0,96682.0,0.25813665]
[1738981387373,0.6603995,96683.0,96682.0,0.25113665]
[1738981387572,0.6603995,96683.0,96682.0,0.11850365]
[1738981387773,0.8000305,96683.0,96682.0,0.016]
[1738981388990,0.8000305,96683.0,96682.0,0.007]
[1738981389495,0.8000305,96683.0,96682.0,0.016]
[1738981390334,0.8000305,96683.0,96682.0,0.009]
[1738981390715,0.8000305,96683.0,96682.0,0.016]
[1738981391047,0.0757,96676.0,96669.0,0.13587507]
[1738981391259,0.59286,96676.0,96670.0,0.10250365]
[1738981391468,0.01466038,96675.0,96670.0,0.10250365]
[1738981391672,0.53182038,96675.0,96670.0,0.10250365]
[1738981392926,0.53182038,96675.0,96671.0,0.139647]
[1738981393126,0.53182038,96675.0,96672.0,0.10250365]
[1738981393950,0.53282038,96675.0,96672.0,0.10250365]
[1738981394508,0.53382038,96675.0,96672.0,0.10750365]
[1738981394740,0.139646,96673.0,96672.0,0.10750365]
[1738981394933,0.732506,96673.0,96672.0,0.10750365]
[1738981395173,0.74715993,96673.0,96672.0,0.10750365]
[1738981395382,0.74715993,96673.0,96672.0,0.11550365]
[1738981395937,0.74715993,96673.0,96672.0,0.10250365]
[1738981396334,0.74815993,96673.0,96672.0,0.11050365]
[1738981396760,0.74915993,96673.0,96672.0,0.11950365]
[1738981398031,0.74915993,96673.0,96672.0,0.017]
[1738981398357,0.79465993,96673.0,96672.0,0.017]
[1738981398916,0.79365993,96673.0,96672.0,0.008]
[1738981399318,0.79265993,96673.0,96672.0,0.003]
[1738981399836,0.79265993,96673.0,96672.0,0.005]
[1738981405635,0.79276673,96673.0,96672.0,0.005]
[1738981408744,0.89527038,96673.0,96672.0,0.005]
[1738981409129,0.89527038,96673.0,96672.0,0.002]
[1738981409337,0.76122438,96673.0,96669.0,0.00022407]
[1738981409533,0.22095,96670.0,96669.0,0.00022407]
[1738981409846,0.75274079,96670.0,96669.0,0.00022407]
[1738981410532,0.85524444,96670.0,96669.0,0.00022407]
[1738981410735,0.85524444,96670.0,96669.0,0.00122407]
[1738981411277,0.90254444,96670.0,96669.0,0.00122407]
[1738981411502,0.90254444,96670.0,96669.0,0.00422407]
[1738981412070,0.90254444,96670.0,96669.0,0.00322407]
[1738981412287,0.90254444,96670.0,96669.0,0.00022407]
[1738981412466,0.90354444,96670.0,96669.0,0.00022407]
[1738981413510,0.91405444,96670.0,96669.0,0.00022407]
[1738981413850,0.91405444,96670.0,96669.0,0.00122407]
[1738981417016,0.92405444,96670.0,96669.0,0.00122407]
[1738981417828,0.92416124,96670.0,96669.0,0.00122407]
[1738981419865,0.91416124,96670.0,96669.0,0.00122407]
[1738981421193,0.92416124,96670.0,96669.0,0.00122407]
[1738981421749,0.91416124,96670.0,96669.0,0.00122407]
[1738981422196,0.80114759,96670.0,96669.0,0.00122407]
[1738981422665,0.75384759,96670.0,96669.0,0.00122407]
[1738981422868,0.67254759,96670.0,96669.0,0.10372772]
[1738981433034,0.53289759,96670.0,96669.0,0.10372772]
[1738981433371,0.67254759,96670.0,96669.0,0.10372772]
[1738981441038,0.74824759,96670.0,96669.0,0.00122407]
[1738981443415,0.74824759,96670.0,96669.0,0.10372772]
[1738981443670,0.53289759,96670.0,96669.0,0.10372772]
[1738981450407,0.53289759,96670.0,96669.0,0.10272772]
[1738981450630,0.53289759,96670.0,96669.0,0.2746313]
[1738981450836,0.5182668,96670.0,96669.0,0.3533313]
[1738981451250,0.53047359,96670.0,96669.0,0.3533313]
[1738981451760,0.53047359,96670.0,96669.0,0.3573313]
[1738981452191,0.52947359,96670.0,96669.0,0.3573313]
[1738981452372,0.52947359,96670.0,96669.0,0.3533313]
[1738981452611,0.53047359,96670.0,96669.0,0.2866313]
[1738981452753,0.53047359,96670.0,96669.0,0.25137872]
[1738981452956,0.53047359,96670.0,96669.0,0.28362992]
[1738981453161,0.53047359,96670.0,96669.0,0.28962992]
[1738981453609,0.53047359,96670.0,96669.0,0.25737872]
[1738981454431,0.53047359,96670.0,96669.0,0.28964004]
[1738981456219,0.53047359,96670.0,96669.0,0.14998904]
[1738981456645,0.53047359,96670.0,96669.0,0.11772772]
[1738981459993,0.53047359,96670.0,96669.0,0.28966815]
[1738981460408,0.53047359,96670.0,96669.0,0.25737872]
[1738981461044,0.53047359,96670.0,96669.0,0.28967005]
[1738981461286,0.53047359,96670.0,96669.0,0.25737872]
[1738981461491,0.53047359,96670.0,96669.0,0.28967004]
[1738981461908,0.53047359,96670.0,96669.0,0.25737872]
[1738981462549,0.53047359,96670.0,96669.0,0.28966942]
[1738981463390,0.53047359,96670.0,96669.0,0.25737872]
[1738981463951,0.53047359,96670.0,96669.0,0.28966978]
[1738981464173,0.53047359,96670.0,96669.0,0.15001878]
[1738981464400,0.53047359,96670.0,96669.0,0.11772772]
[1738981465114,0.53047359,96670.0,96669.0,0.25737872]
[1738981466390,0.53047359,96670.0,96669.0,0.11772772]
[1738981466590,0.67012359,96670.0,96669.0,0.11772772]
[1738981466789,0.53047359,96670.0,96669.0,0.11772772]
[1738981467000,0.67012359,96670.0,96669.0,0.11772772]
[1738981467716,0.53047359,96670.0,96669.0,0.11772772]
[1738981468335,0.67012359,96670.0,96669.0,0.11772772]
[1738981468577,0.53047359,96670.0,96669.0,0.11772772]
[1738981469571,0.67012359,96670.0,96669.0,0.01522407]
[1738981469736,0.80082359,96670.0,96669.0,0.01522407]
[1738981480775,0.75142359,96670.0,96669.0,0.01522407]
[1738981482205,0.53047359,96670.0,96669.0,0.11772772]
[1738981482943,0.53047359,96670.0,96669.0,0.25737872]
[1738981483165,0.53047359,96670.0,96669.0,0.11772772]
[1738981483404,0.53047359,96670.0,96669.0,0.25737872]
[1738981487326,0.53047359,96670.0,96669.0,0.26787002]
[1738981487575,0.53047359,96670.0,96669.0,0.30015032]
[1738981498537,0.53047359,96670.0,96669.0,0.28965902]
[1738981502240,0.53047359,96670.0,96669.0,0.31265902]
[1738981506039,0.53047359,96670.0,96669.0,0.46265902]
[1738981506197,0.53047359,96670.0,96669.0,0.61262557]
[1738981506401,0.53047359,96670.0,96669.0,0.65852557]
[1738981507020,0.52947359,96670.0,96669.0,0.64952557]
[1738981507444,0.53047359,96670.0,96669.0,0.65852557]
[1738981507922,0.52947359,96670.0,96669.0,0.64952557]
[1738981508148,0.52947359,96670.0,96669.0,0.64352557]
[1738981508339,0.53047359,96670.0,96669.0,0.65252557]
[1738981508621,0.53047359,96670.0,96669.0,0.66152557]
[1738981508818,0.52947359,96670.0,96669.0,0.64352557]
[1738981509145,0.52947359,96670.0,96669.0,0.65252557]
[1738981510751,0.52947359,96670.0,96669.0,0.66152557]
[1738981511029,0.52947359,96670.0,96669.0,0.65252557]
[1738981511254,0.52947359,96670.0,96669.0,0.64352557]
[1738981511608,0.52947359,96670.0,96669.0,0.66152557]
[1738981515215,0.52947359,96670.0,96669.0,0.91642557]
[1738981521062,0.52947359,96670.0,96669.0,0.90742557]
[1738981521222,0.52947359,96670.0,96669.0,0.91642557]
[1738981521420,0.52947359,96670.0,96669.0,0.90742557]
[1738981521667,0.52947359,96670.0,96669.0,0.91642557]
[1738981521985,0.52947359,96670.0,96669.0,0.90742557]
[1738981522404,0.52947359,96670.0,96669.0,0.91642557]
[1738981523023,0.1397018,96708.0,96669.0,0.91642557]
[1738981523024,8e-07,96688.0,96685.0,0.01]
[1738981523221,0.0001068,96708.0,96707.0,0.289596]
[1738981523419,0.0001068,96708.0,96707.0,0.41509965]
[1738981523764,0.0001068,96708.0,96707.0,0.44727516]
[1738981524598,0.00024305,96708.0,96707.0,0.44727516]
[1738981524981,5e-08,96709.0,96708.0,0.312595]
[1738981525156,5e-08,96709.0,96708.0,0.7411652]
[1738981525352,5e-08,96709.0,96708.0,0.77334071]
[1738981526275,0.01,96778.0,96708.0,0.77334071]
[1738981526276,0.0781,96763.0,96723.0,0.1273]
[1738981526425,0.96684097,96742.0,96741.0,0.26505065]
[1738981526625,0.86347097,96742.0,96741.0,0.30722616]
[1738981527246,0.86347097,96742.0,96741.0,0.44722616]
[1738981527447,0.86347097,96742.0,96741.0,0.45722616]
[1738981527985,0.86347097,96742.0,96741.0,0.46622616]
[1738981528751,0.86347097,96742.0,96741.0,0.4854413]
[1738981529314,0.86347097,96742.0,96741.0,0.45326579]
[1738981529509,0.86347097,96742.0,96741.0,0.47417338]
[1738981530140,0.86347097,96742.0,96741.0,0.54533993]
[1738981530141,0.87711923,96742.0,96741.0,0.54533993]
[1738981530924,0.87711923,96742.0,96741.0,0.53633993]
[1738981531173,0.87711923,96742.0,96741.0,0.51733993]
[1738981531377,0.87711923,96742.0,96741.0,0.54533993]
[1738981531794,0.87711923,96742.0,96741.0,0.32343234]
[1738981532001,0.87711923,96742.0,96741.0,0.3132172]
[1738981532232,0.87711923,96742.0,96741.0,0.3222172]
[1738981532409,0.87711923,96742.0,96741.0,0.4632172]
[1738981532752,0.87711923,96742.0,96741.0,0.3222172]
[1738981532958,0.87711923,96742.0,96741.0,0.3132172]
[1738981533203,0.87711923,96742.0,96741.0,0.4632172]
[1738981533399,0.87711923,96742.0,96741.0,0.4722172]
[1738981533616,0.87722603,96742.0,96741.0,0.4722172]
[1738981534040,0.87722603,96742.0,96741.0,0.4632172]
[1738981534239,0.87722603,96742.0,96741.0,0.4722172]
[1738981534900,0.87722603,96742.0,96741.0,0.4802172]
[1738981536075,0.87722603,96742.0,96741.0,0.40905065]
[1738981536273,0.86357777,96742.0,96741.0,0.40905065]
[1738981536608,0.87726218,96742.0,96741.0,0.40905065]
[1738981539204,0.87710713,96742.0,96741.0,0.40905065]
[1738981544661,0.87710713,96742.0,96741.0,0.40927472]